bitfinex-derivatives/quotes_BNBF0:USTF0_20250511
["timestamp","ask_amount","ask_price","bid_price","bid_amount"]
[1746978513643,0.26661457,652.77,651.24,0.25784325]
[1746978514137,0.26661457,652.77,651.25,0.25784325]
[1746978514341,0.29740454,652.78,651.26,1.46196326]
[1746978514736,0.29740454,652.78,651.27,0.25784325]
[1746978515041,0.29740454,652.78,651.28,0.25784325]
[1746978515241,0.26661253,652.77,651.29,1.20412001]
[1746978515438,0.26661253,652.77,651.29,1.46196326]
[1746978515639,0.26661253,652.77,651.3,1.20412001]
[1746978515840,0.26661253,652.77,651.31,1.20412001]
[1746978516141,0.26661253,652.77,651.31,1.46196857]
[1746978516340,0.26661253,652.77,651.32,1.46196857]
[1746978516737,0.26661253,652.77,651.33,0.25784856]
[1746978517237,0.29740454,652.78,651.34,0.25784856]
[1746978517439,0.29740454,652.78,651.35,0.25784856]
[1746978517638,0.26660844,652.76,651.35,0.25784856]
[1746978517942,0.26660844,652.76,651.36,0.25784856]
[1746978518145,0.26660844,652.76,651.37,1.20412001]
[1746978518343,0.26660844,652.76,651.37,1.46196857]
[1746978518543,0.26660844,652.76,651.38,0.25784856]
[1746978518843,0.26660844,652.76,651.38,1.46196857]
[1746978519044,0.26660844,652.76,651.39,0.25784856]
[1746978519246,0.26660844,652.76,651.4,1.20412001]
[1746978519441,0.26660844,652.76,651.41,0.25784856]
[1746978519745,0.26660844,652.76,651.42,0.25784856]
[1746978519947,0.26660844,652.76,651.43,0.25784856]
[1746978520246,0.26660844,652.76,651.44,1.20412001]
[1746978520446,0.29740454,652.78,651.44,1.46196857]
[1746978520748,0.26661968,652.75,651.45,1.46196857]
[1746978520946,0.26661968,652.75,651.46,0.25784856]
[1746978521247,0.26661968,652.75,651.47,1.20412001]
[1746978521448,0.26661968,652.75,651.48,1.20412001]
[1746978521647,0.30640071,652.74,651.49,1.20412001]
[1746978522047,0.30640071,652.74,651.5,1.20412001]
[1746978522348,0.30640071,652.74,651.51,1.20412001]
[1746978522648,0.30640071,652.74,651.51,1.46196857]
[1746978522845,0.30640071,652.74,651.52,1.46196857]
[1746978523150,0.30640071,652.74,651.53,0.25784856]
[1746978523345,0.30640071,652.74,651.53,1.46196857]
[1746978523541,0.26667178,652.73,651.53,1.46196857]
[1746978523750,0.26667178,652.73,651.54,1.46196857]
[1746978524048,0.26667178,652.73,651.55,1.20412001]
[1746978524544,0.26667178,652.73,651.2,1.20412001]
[1746978525046,0.26667178,652.73,651.21,0.25808104]
[1746978525952,0.26667178,652.73,651.22,1.20412001]
[1746978526350,0.26667178,652.73,651.23,0.25808104]
[1746978526551,0.26667178,652.73,651.24,1.20412001]
[1746978526752,0.28165901,652.72,651.24,1.20412001]
[1746978527146,0.28165901,652.72,651.25,0.25808104]
[1746978527553,0.28165901,652.72,651.26,1.20412001]
[1746978527953,0.28165901,652.72,651.27,0.25808104]
[1746978528150,0.26667178,652.73,651.28,1.20412001]
[1746978528348,0.28172859,652.72,651.29,0.2581956]
[1746978528752,0.28172859,652.72,649.42,0.96619065]
[1746978529153,0.28172859,652.72,651.17,1.46236889]
[1746978529549,0.28172859,652.72,651.18,0.25820338]
[1746978529748,0.28172859,652.72,651.19,1.20416551]
[1746978530249,0.28172859,652.72,651.2,0.25820338]
[1746978530649,0.28172859,652.72,651.17,0.25820338]
[1746978531757,0.26667178,652.73,650.4,0.26682206]
[1746978532252,0.28181138,652.72,651.17,0.25827782]
[1746978532561,0.26690289,652.72,651.17,0.25827782]
[1746978532959,0.28181138,652.71,651.18,1.20376282]
[1746978533258,0.26690289,652.72,651.19,1.20376282]
[1746978533458,0.26690289,652.72,651.2,1.20376282]
[1746978533656,0.26690289,652.72,650.38,0.26690289]
[1746978533657,0.26690289,652.72,651.21,1.20376282]
[1746978533855,0.26690289,652.72,651.22,1.20376282]
[1746978534052,0.26690289,652.72,651.23,1.20376282]
[1746978534252,0.26690289,652.72,651.24,1.20270431]
[1746978534459,0.26690289,652.72,651.25,1.20283409]
[1746978534959,0.26690289,652.72,651.26,1.20283409]
[1746978535258,0.26690289,652.72,651.27,1.46100062]
[1746978535560,0.26690289,652.72,651.28,1.46100062]
[1746978535857,0.26690289,652.72,651.29,1.20283409]
[1746978536054,0.26690289,652.72,651.3,1.20283409]
[1746978536359,0.26690289,652.72,651.31,1.46100062]
[1746978536559,0.26690289,652.72,651.31,0.25816653]
[1746978536760,0.26690289,652.72,651.32,0.25816653]
[1746978537155,0.26690289,652.72,651.17,0.25816653]
[1746978537561,0.26690289,652.72,651.18,1.19746526]
[1746978537760,0.26690289,652.72,651.19,1.19746526]
[1746978537956,0.26690289,652.72,651.18,1.19746526]
[1746978538161,0.28172437,652.71,651.2,0.25816653]
[1746978538461,0.28172437,652.71,651.19,0.25816653]
[1746978539062,0.26690289,652.72,651.17,0.25816653]
[1746978539861,0.28170965,652.71,651.17,0.25816653]
[1746978541557,0.26681081,652.7,651.17,0.25816653]
[1746978542061,0.28170965,652.69,651.17,0.25816653]
[1746978543658,0.26681081,652.7,651.17,0.25816653]
[1746978544364,0.30640071,652.74,651.17,0.25816653]
[1746978544657,0.26677603,652.69,651.17,0.25816653]
[1746978546162,0.28169123,652.68,651.17,0.25816653]
[1746978546964,0.28169123,652.68,651.2,1.19754828]
[1746978547163,0.26677603,652.69,651.2,1.19754828]
[1746978547564,0.26677603,652.69,651.21,1.45571481]
[1746978547766,0.26677603,652.69,651.22,1.19754828]
[1746978547965,0.26677603,652.69,651.22,1.45571481]
[1746978548466,0.26677603,652.69,651.23,0.25816653]
[1746978549067,0.28171311,652.68,651.23,0.25816653]
[1746978549268,0.28171311,652.68,651.17,0.25816653]
[1746978549466,0.26677603,652.69,651.24,0.25816653]
[1746978549666,0.26677603,652.69,651.18,1.19232205]
[1746978550065,0.26677603,652.69,651.19,0.25816653]
[1746978550369,0.30640071,652.74,651.19,0.25816653]
[1746978550565,0.28170632,652.68,651.17,0.25816653]
[1746978550769,0.26678422,652.68,651.18,1.19233919]
[1746978551271,0.28170632,652.67,651.19,0.25816653]
[1746978551472,0.28170632,652.67,651.19,1.45050572]
[1746978551867,0.28170632,652.67,651.19,0.25816653]
[1746978552275,0.28170632,652.67,651.17,0.25816653]
[1746978553274,0.28170632,652.67,651.18,1.1919222]
[1746978553474,0.28170632,652.73,651.19,0.25816653]
[1746978553875,0.26678217,652.66,651.19,0.25816653]
[1746978554071,0.28170632,652.65,651.17,0.25816653]
[1746978554672,0.28170632,652.65,651.18,1.19290902]
[1746978554869,0.28170632,652.65,651.19,0.25816653]
[1746978555376,0.28170632,652.65,651.2,1.19290902]
[1746978555575,0.28170632,652.65,651.21,0.25816653]
[1746978556072,0.28170632,652.65,651.17,0.25816653]
[1746978556376,0.28170632,652.65,651.18,1.19357578]
[1746978556578,0.2667924,652.64,651.19,0.25816653]
[1746978556776,0.28170632,652.63,651.2,1.19357578]
[1746978556977,0.28170632,652.63,651.21,0.25816653]
[1746978557279,0.28170632,652.63,651.22,1.19357578]
[1746978557573,0.28170632,652.63,651.23,0.25816653]
[1746978558178,0.28170632,652.63,651.24,1.19357578]
[1746978558674,0.30646174,652.61,651.23,0.25816653]
[1746978559379,0.30646174,652.61,651.25,0.25816653]
[1746978559579,0.26679342,652.6,651.25,0.25816653]
[1746978559782,0.30647583,652.58,651.26,1.19495247]
[1746978560082,1.9829353,652.55,651.26,1.19495247]
[1746978560283,1.9829353,652.55,651.27,1.453119]
[1746978560582,1.9829353,652.55,651.28,0.25816653]
[1746978560781,0.30649931,652.53,651.28,0.25816653]
[1746978561182,0.30649931,652.53,651.17,0.25816653]
[1746978561478,0.30649931,652.53,651.18,1.19533629]
[1746978561782,0.30649931,652.53,651.19,0.25816653]
[1746978562082,0.30649931,652.53,651.2,1.19533629]
[1746978562481,0.30649931,652.53,651.21,1.45350282]
[1746978562679,0.26678115,652.52,651.21,1.45350282]
[1746978562879,0.3065134,652.5,651.22,1.45350282]
[1746978563283,0.3065134,652.5,651.23,1.19533629]
[1746978563486,0.3065134,652.5,651.23,1.45350282]
[1746978563781,0.3065134,652.5,651.24,1.45506083]
[1746978564083,0.3065134,652.5,651.25,1.45506083]
[1746978564283,0.3065134,652.5,651.26,1.19742218]
[1746978564482,0.3065134,652.5,651.26,1.45558871]
[1746978564780,0.3065134,652.5,651.27,1.19742218]
[1746978564983,0.3065134,652.5,651.27,1.45558871]
[1746978565184,0.3065134,652.5,651.28,0.25816653]
[1746978565484,0.3065134,652.5,651.17,0.25816653]
[1746978565780,0.3065134,652.5,651.18,1.19847014]
[1746978565982,0.3065134,652.5,651.19,1.19847014]
[1746978566185,0.3065134,652.5,651.18,1.19847014]
[1746978566384,0.3065134,652.5,651.19,0.25816653]
[1746978566686,0.3065134,652.5,651.2,1.19847014]
[1746978566883,0.3065134,652.5,651.17,1.19847014]
[1746978567079,0.3065134,652.5,651.18,0.25817065]
[1746978567285,0.3065134,652.5,651.19,1.19847014]
[1746978567582,0.3065134,652.5,651.2,0.25817065]
[1746978567889,0.3065134,652.5,651.21,1.19847014]
[1746978568088,0.3065134,652.5,651.22,1.20025207]
[1746978568284,0.3065134,652.5,651.23,1.20025207]
[1746978568483,0.3065134,652.5,651.24,1.45900411]
[1746978568686,0.26678217,652.49,651.24,0.25817065]
[1746978568886,0.26678217,652.49,651.25,1.45900656]
[1746978569083,0.26678217,652.49,651.26,1.20083591]
[1746978569284,0.26678217,652.49,651.26,1.45900656]
[1746978569486,0.26678217,652.49,651.27,1.20083591]
[1746978569882,0.3065275,652.47,651.28,0.25816958]
[1746978570189,0.3065275,652.47,651.18,0.25816958]
[1746978570385,0.3065275,652.47,651.17,1.20083591]
[1746978570587,0.3065275,652.47,650.63,0.26678217]
[1746978570786,0.3065275,652.47,651.18,0.25816934]
[1746978570990,0.3065275,652.47,651.17,0.25816934]
[1746978572693,0.26678115,652.46,651.17,0.25816934]
[1746978573793,0.30654159,652.44,651.17,0.25816934]
[1746978574893,0.30654159,652.44,651.18,1.20185805]
[1746978575093,0.30654159,652.44,651.19,0.25816934]
[1746978575393,0.30654159,652.44,651.2,1.20185805]
[1746978575594,0.26678524,652.43,651.2,1.20185805]
[1746978575794,0.30655569,652.41,651.21,0.25816934]
[1746978576093,0.30655569,652.41,651.22,1.20185805]
[1746978576495,0.30655569,652.41,651.23,0.25816934]
[1746978577097,0.30655569,652.41,651.24,1.20185805]
[1746978577600,0.26678933,652.4,651.25,0.25816934]
[1746978577899,0.30656509,652.39,651.25,0.25816934]
[1746978578199,0.30656509,652.39,651.26,1.20185805]
[1746978578799,0.30656509,652.39,651.27,0.25816934]
[1746978579193,0.30656509,652.39,651.28,1.20562239]
[1746978579395,0.30656509,652.39,651.29,0.25816934]
[1746978579698,0.30656509,652.39,651.3,1.20562239]
[1746978580102,0.30656509,652.39,651.31,0.25816934]
[1746978580299,0.30656509,652.39,651.32,1.20562239]
[1746978580699,0.26679444,652.38,651.32,1.20562239]
[1746978580898,0.26679444,652.38,651.33,0.25816934]
[1746978581199,0.26679444,652.38,651.34,1.20562239]
[1746978581705,0.26679444,652.38,651.35,0.25816934]
[1746978582004,0.26679444,652.38,651.36,1.20562239]
[1746978582299,0.26679444,652.38,651.37,0.25816934]
[1746978583004,0.26679444,652.38,651.38,1.20562239]
[1746978583306,0.30657448,652.37,651.38,1.20562239]
[1746978583501,0.30657448,652.37,651.39,0.25816934]
[1746978583705,0.57336176,652.37,651.4,1.20562239]
[1746978583905,0.57336176,652.37,651.41,1.20762163]
[1746978584106,0.57336176,652.37,651.42,0.25816934]
[1746978584407,0.57336176,652.37,651.43,1.20762163]
[1746978585107,0.57336176,652.37,651.17,1.20762163]
[1746978585408,0.57336176,652.37,651.18,0.25815177]
[1746978585708,0.57336176,652.37,651.19,1.20762163]
[1746978586210,0.57336176,652.37,651.2,0.25815177]
[1746978586409,0.30657448,652.37,651.2,0.25815177]
[1746978586811,0.26680058,652.36,651.21,1.20762163]
[1746978587212,0.26680058,652.36,651.22,0.25815177]
[1746978587411,0.26680058,652.36,651.23,1.20762163]
[1746978588012,0.26680058,652.36,651.24,0.25815177]
[1746978588206,0.26680058,652.36,651.25,1.20762163]
[1746978588515,0.30658388,652.35,651.25,1.20762163]
[1746978588713,0.30658388,652.35,651.26,0.25815177]
[1746978589013,0.30658388,652.35,651.27,1.20762163]
[1746978589309,0.30658388,652.35,651.28,0.25815177]
[1746978589712,0.26678933,652.34,651.29,1.20762163]
[1746978589909,0.30659328,652.33,651.29,1.20762163]
[1746978590209,0.30659328,652.33,651.3,0.25815177]
[1746978590709,0.30659328,652.33,651.31,1.20762163]
[1746978591214,0.30659328,652.33,651.32,0.25815177]
[1746978591510,0.30659328,652.33,651.33,1.20762163]
[1746978591813,0.30659328,652.33,651.34,0.25815177]
[1746978592013,0.30659328,652.33,651.35,1.20762163]
[1746978592514,0.30659328,652.33,651.36,0.25815177]
[1746978592907,0.26673821,652.32,651.37,1.20762163]
[1746978593110,0.30660268,652.31,651.37,1.20762163]
[1746978593316,0.30660268,652.31,651.38,0.25815177]
[1746978593714,0.30660268,652.31,651.39,1.20762163]
[1746978594015,0.30660268,652.31,651.4,0.25815177]
[1746978594310,0.30660268,652.31,651.41,1.20762163]
[1746978594715,0.30660268,652.31,651.42,0.25815177]
[1746978595218,0.30660268,652.31,651.43,1.20762163]
[1746978595717,0.30660268,652.31,651.44,0.25815177]
[1746978596013,0.30660268,652.31,651.45,1.20762163]
[1746978596517,0.26668506,652.3,651.46,0.25815177]
[1746978596718,0.26668506,652.3,651.47,1.20805681]
[1746978596913,0.26668506,652.3,651.46,0.25815177]
[1746978596914,0.26668506,652.3,651.48,1.20805681]
[1746978597118,0.26668506,652.3,651.49,0.25815177]
[1746978597619,0.26668506,652.3,651.5,1.20805681]
[1746978597920,0.26668506,652.3,651.51,1.20805681]
[1746978598318,0.26668506,652.3,651.52,0.25815177]
[1746978598519,0.30660268,652.31,651.53,1.20805681]
[1746978598719,0.26674536,652.29,651.53,1.20805681]
[1746978598919,0.26674536,652.29,651.54,0.25815177]
[1746978599318,0.26674536,652.29,651.55,1.20805681]
[1746978599616,0.26674536,652.29,651.56,0.25815177]
[1746978599919,0.26674536,652.29,651.57,1.20805681]
[1746978600223,0.26674536,652.29,651.58,0.25815177]
[1746978600424,0.26674536,652.29,651.59,1.20805681]
[1746978600922,0.26674536,652.29,651.6,0.25815177]
[1746978601123,0.26674536,652.29,651.61,1.20805681]
[1746978601321,0.26674536,652.29,651.62,0.25815177]
[1746978601624,0.26674536,652.29,651.63,1.20805681]
[1746978602025,0.26674536,652.29,651.64,0.25815177]
[1746978602619,0.26674536,652.29,651.17,0.25815177]
[1746978603025,0.26674536,652.29,651.18,1.20411322]
[1746978603219,0.26674536,652.29,651.19,0.25815177]
[1746978603724,0.26674536,652.29,651.2,1.20382743]
[1746978604224,0.26674536,652.29,651.21,1.4619792]
[1746978604425,0.30660268,652.31,651.22,1.20382743]
[1746978604724,0.30660268,652.31,651.22,1.4619792]
[1746978604923,0.30660268,652.31,651.23,0.25815177]
[1746978605528,0.30660268,652.31,651.24,1.20382743]
[1746978605529,0.26670039,652.3,651.24,1.20382743]
[1746978606020,0.26670039,652.3,651.25,0.25815177]
[1746978606422,0.26670039,652.3,651.26,1.20382743]
[1746978606825,0.26670039,652.3,651.27,0.25815177]
[1746978607028,0.26670039,652.3,651.28,1.20382743]
[1746978607229,0.26670039,652.3,651.29,1.20382743]
[1746978607426,0.30660268,652.31,651.29,1.20382743]
[1746978607627,0.30660268,652.31,651.3,0.25815177]
[1746978607927,0.30660268,652.31,651.31,1.20382743]
[1746978608624,0.5732857,652.31,651.32,1.4619792]
[1746978608821,0.5732857,652.31,651.33,0.25815177]
[1746978609527,0.5732857,652.31,651.34,1.20382743]
[1746978609931,0.5732857,652.31,651.35,0.25815177]
[1746978610232,0.5732857,652.31,651.36,1.20382743]
[1746978610430,0.30660268,652.31,651.36,1.20382743]
[1746978610628,0.57332249,652.31,651.36,1.20382743]
[1746978610826,0.57332249,652.31,651.37,1.4619792]
[1746978611035,0.57332249,652.31,651.38,0.25815177]
[1746978611238,0.57332249,652.31,651.39,1.20382743]
[1746978611636,0.57332249,652.31,651.4,0.25815177]
[1746978611837,0.57332249,652.31,651.41,1.20382743]
[1746978612335,0.30631154,652.93,651.41,1.20382743]
[1746978612537,0.30638662,652.77,651.42,1.20382743]
[1746978612737,0.30638662,652.77,651.42,1.4619792]
[1746978612938,0.30638662,652.77,651.43,0.25815177]
[1746978613240,0.30638662,652.77,651.44,1.20382743]
[1746978613438,0.26662478,652.76,651.45,0.25815177]
[1746978613737,0.26662478,652.76,651.46,1.20382743]
[1746978614137,0.26662478,652.76,651.47,0.25815177]
[1746978614337,0.26662478,652.76,651.48,1.20382743]
[1746978614845,0.26662478,652.76,651.49,1.4619792]
[1746978615438,0.26662478,652.76,651.5,1.20382743]
[1746978615639,0.26662478,652.76,651.5,1.4619792]
[1746978615944,0.26662478,652.76,651.51,1.20382743]
[1746978616133,0.26662478,652.76,651.51,1.4619792]
[1746978616334,0.26662478,652.76,651.52,0.25815177]
[1746978616639,0.26661457,652.75,651.52,0.25815177]
[1746978616935,0.26661457,652.75,651.53,1.20382743]
[1746978617138,0.26661457,652.75,651.54,0.25815177]
[1746978617734,0.26661457,652.75,651.55,1.20382743]
[1746978618040,0.26661457,652.75,651.56,1.20382743]
[1746978618236,0.26661457,652.75,651.56,1.4619792]
[1746978618539,0.26661457,652.75,651.57,0.25815177]
[1746978618745,0.26661457,652.75,651.58,1.20382743]
[1746978619241,0.26661457,652.75,651.59,1.20382743]
[1746978619444,0.30638662,652.77,651.59,1.20382743]
[1746978619640,0.2666064,652.74,651.59,1.4619792]
[1746978620038,0.2666064,652.74,651.6,1.4619792]
[1746978620246,0.2666064,652.74,651.61,0.25815177]
[1746978620743,0.2666064,652.74,651.62,1.20382743]
[1746978621040,0.2666064,652.74,651.63,1.4619792]
[1746978621543,0.2666064,652.74,651.64,1.4619792]
[1746978621743,0.2666064,652.74,651.65,0.25815177]
[1746978622351,0.30638662,652.77,651.66,1.20382743]
[1746978622749,0.26661253,652.76,651.67,0.25815177]
[1746978623142,0.26661253,652.76,651.68,1.20382743]
[1746978623343,0.26661253,652.76,651.69,1.20382743]
[1746978623550,0.26661253,652.76,651.69,1.4619792]
[1746978623851,0.26661253,652.76,651.7,0.25815177]
[1746978624045,0.30639601,652.75,651.7,0.25815177]
[1746978624948,0.30639601,652.75,651.71,1.20382743]
[1746978625244,0.30639601,652.75,651.72,0.25815177]
[1746978625647,0.26660946,652.74,651.73,1.20382743]
[1746978625849,0.26660946,652.74,651.74,0.25815177]
[1746978626046,0.26660946,652.74,651.75,1.20382743]
[1746978626447,0.26660946,652.74,651.76,0.25815177]
[1746978626750,0.26660946,652.74,651.77,1.20382743]
[1746978627150,0.26660946,652.74,651.76,0.25815177]
[1746978627346,0.26660946,652.74,651.78,0.25815177]
[1746978627547,0.26660946,652.74,651.17,0.25815177]
[1746978627743,0.3064054,652.73,651.18,1.50305912]
[1746978628050,0.3064054,652.73,651.19,0.30713002]
[1746978628242,0.3064054,652.73,651.2,1.19592438]
[1746978628447,0.3064054,652.73,651.21,0.30712059]
[1746978628848,0.3064054,652.73,651.22,1.45407615]
[1746978629045,0.3064054,652.73,651.23,0.30711115]
[1746978629245,0.3064054,652.73,651.24,1.19592438]
[1746978629445,0.3064054,652.73,651.25,0.30710172]
[1746978629645,0.26666564,652.72,651.26,1.19592438]
[1746978629849,0.30641479,652.71,651.26,1.19592438]
[1746978630050,0.30641479,652.71,651.27,0.25815177]
[1746978630550,0.30641479,652.71,651.28,1.19592438]
[1746978631050,0.30641479,652.71,651.29,0.25815177]
[1746978631346,0.30641479,652.71,651.3,1.19592438]
[1746978631850,0.30641479,652.71,651.31,0.25815177]
[1746978632050,0.30641479,652.71,651.32,1.19592438]
[1746978632551,0.30641479,652.71,651.33,0.25815177]
[1746978632853,0.26665747,652.7,651.34,1.19592438]
[1746978633151,0.26665747,652.7,651.35,1.45407615]
[1746978633555,0.26665747,652.7,651.36,0.25815177]
[1746978633752,0.26665747,652.7,651.36,1.45407615]
[1746978634353,0.30641479,652.71,651.37,0.25815177]
[1746978634655,0.30641479,652.71,651.38,1.45407615]
[1746978635049,0.30641479,652.71,651.39,1.19592438]
[1746978635252,0.30641479,652.71,651.39,1.45407615]
[1746978635458,0.30641479,652.71,651.4,0.25815177]
[1746978635653,0.26662989,652.7,651.41,1.19592438]
[1746978635853,0.26662989,652.7,651.41,1.45407615]
[1746978636152,0.26662989,652.7,651.42,1.19592438]
[1746978636356,0.26662989,652.7,651.42,1.45407615]
[1746978636555,0.26662989,652.7,651.43,0.25815177]
[1746978636751,0.26662989,652.7,651.44,1.19592438]
[1746978637054,0.26662989,652.7,651.44,1.45407615]
[1746978637254,0.26662989,652.7,651.45,0.25815177]
[1746978637455,0.30641479,652.71,651.46,1.19592438]
[1746978637655,0.26662376,652.69,651.46,1.45407615]
[1746978637855,0.26662376,652.69,651.47,0.25815177]
[1746978638254,0.26662376,652.69,651.48,1.45407615]
[1746978638555,0.26662376,652.69,651.49,0.25815177]
[1746978639154,0.26662376,652.69,651.5,1.19592438]
[1746978639456,0.26662376,652.69,651.51,0.25815177]
[1746978639657,0.26662376,652.69,651.52,1.19592438]
[1746978640156,0.26662376,652.69,651.53,1.45407615]
[1746978640357,0.30641479,652.71,651.53,1.45407615]
[1746978640555,0.30641479,652.71,651.54,0.25815177]
[1746978640757,0.2666064,652.68,651.54,0.25815177]
[1746978641057,0.2666064,652.68,651.55,1.19592438]
[1746978641354,0.2666064,652.68,651.56,1.45407615]
[1746978641857,0.2666064,652.68,651.57,1.45407615]
[1746978642057,0.2666064,652.68,651.58,0.25815177]
[1746978642458,0.2666064,652.68,651.59,1.19592438]
[1746978642757,0.2666064,652.68,651.6,1.19592438]
[1746978642958,0.2666064,652.68,651.6,1.45407615]
[1746978643457,0.30641479,652.71,651.61,0.25815177]
[1746978643657,0.30641479,652.71,651.61,1.45407615]
[1746978643858,0.30641479,652.71,651.62,1.19592438]
[1746978644158,0.30641479,652.71,651.62,1.45407615]
[1746978644359,0.30641479,652.71,651.63,0.25815177]
[1746978644560,0.30641479,652.71,651.64,1.19592438]
[1746978644761,0.26658802,652.7,651.64,1.19592438]
[1746978644962,0.26658802,652.7,651.25,0.57369893]
[1746978644963,0.26658802,652.7,651.65,1.45407615]
[1746978645361,0.26658802,652.7,651.66,1.19592438]
[1746978645761,0.26658802,652.7,651.67,0.25815177]
[1746978645958,0.26658802,652.7,651.67,1.45407615]
[1746978646158,0.26658802,652.7,651.68,1.19592438]
[1746978646360,0.30641479,652.71,651.68,1.19592438]
[1746978646561,0.30641479,652.71,651.69,1.19592438]
[1746978646861,0.30641479,652.71,651.69,1.45407615]
[1746978647061,0.30641479,652.71,651.7,0.25815177]
[1746978647662,0.26658087,652.7,651.71,1.19592438]
[1746978648063,0.26658087,652.7,651.72,0.25815177]
[1746978648358,0.26658087,652.7,651.73,1.19592438]
[1746978649059,0.26658087,652.7,651.74,0.25815177]
[1746978649363,0.30641479,652.71,651.75,1.19592438]
[1746978649857,0.30641479,652.71,651.76,0.25815177]
[1746978650662,0.57296299,652.71,651.77,1.19592438]
[1746978651165,0.57296299,652.71,651.78,0.25815177]
[1746978651560,0.57296299,652.71,651.79,1.19592438]
[1746978652064,0.57296299,652.71,651.8,0.25815177]
[1746978652260,0.57296299,652.71,651.79,1.19592438]
[1746978652465,0.30641479,652.71,651.33,1.19592438]
[1746978652766,0.30641479,652.71,651.8,0.25785487]
[1746978653060,0.30641479,652.71,651.27,0.25785487]
[1746978653265,0.30641479,652.71,651.28,1.19592438]
[1746978653465,0.30641479,652.71,651.28,1.45377925]
[1746978653761,0.57301302,652.71,651.29,1.45377925]
[1746978654065,0.57301302,652.71,651.3,1.19592438]
[1746978654267,0.57301302,652.71,651.3,1.45377925]
[1746978654461,0.57301302,652.71,651.31,0.25785487]
[1746978654765,0.57301302,652.71,651.32,0.25785487]
[1746978655165,0.57301302,652.71,651.33,0.25785487]
[1746978655367,0.57301302,652.71,651.34,1.19592438]
[1746978655567,0.30641479,652.71,651.34,1.19592438]
[1746978655766,0.57301506,652.71,651.34,1.45377925]
[1746978655967,0.57301506,652.71,651.35,0.25785487]
[1746978656162,0.57301506,652.71,651.35,1.45377925]
[1746978656363,0.57301506,652.71,651.36,0.25785487]
[1746978656862,0.57301506,652.71,651.37,0.25785487]
[1746978657062,0.57301506,652.71,651.38,1.45377925]
[1746978657469,0.57301506,652.71,651.39,1.19592438]
[1746978657669,0.57301506,652.71,651.39,1.45377925]
[1746978657869,0.57301506,652.71,651.4,1.19592438]
[1746978658070,0.57301506,652.71,651.4,1.45377925]
[1746978658263,0.57301506,652.71,651.41,1.45377925]
[1746978658469,0.30641479,652.71,651.41,1.45377925]
[1746978658670,0.26659925,652.7,651.42,0.25785487]
[1746978658968,0.26659925,652.7,651.43,0.25785487]
[1746978659175,0.26659925,652.7,651.44,1.19592438]
[1746978659472,0.26659925,652.7,651.45,0.30700744]
[1746978659665,0.26659925,652.7,651.46,1.45377925]
[1746978659967,0.26659925,652.7,651.47,1.45377925]
[1746978660372,0.30641479,652.71,651.48,0.25785487]
[1746978660572,0.30631154,652.93,651.48,0.25785487]
[1746978660773,0.30631154,652.93,651.49,1.19592438]
[1746978660972,0.30631154,652.93,651.49,1.45377925]
[1746978661279,0.30631154,652.93,651.5,0.25785487]
[1746978661472,0.26655637,652.79,651.51,1.19592438]
[1746978661666,0.26655637,652.79,651.51,1.45377925]
[1746978661869,0.26655637,652.79,651.52,1.19592438]
[1746978662070,0.26655637,652.79,651.52,1.45377925]
[1746978662473,0.26655637,652.79,651.53,0.25785487]
[1746978662674,0.26655637,652.79,651.53,1.45377925]
[1746978662875,0.26655637,652.79,651.54,0.25785487]
[1746978663276,0.26655637,652.79,651.55,0.25785487]
[1746978663469,0.26655637,652.79,651.56,1.45377925]
[1746978663776,0.26655637,652.79,651.57,0.56480577]
[1746978663974,0.26655637,652.79,651.58,0.30694619]
[1746978664174,0.26655637,652.79,651.59,1.19592438]
[1746978664376,0.30631154,652.93,651.59,1.19592438]
[1746978664676,0.26656351,652.77,651.6,0.25785487]
[1746978664870,0.26656351,652.77,651.61,1.19592438]
[1746978665069,0.26656351,652.77,651.61,1.45377925]
[1746978665576,0.26656351,652.77,651.62,1.45377925]
[1746978665876,0.26656351,652.77,651.63,0.25785487]
[1746978666175,0.26656351,652.77,651.64,1.45377925]
[1746978666577,0.26656351,652.77,651.65,1.45377925]
[1746978666874,0.26656351,652.77,651.66,0.25785487]
[1746978667273,0.26656351,652.77,651.67,0.25785487]
[1746978667474,0.30631154,652.93,651.67,1.45377925]
[1746978667676,0.26655841,652.76,651.67,1.19592438]
[1746978667976,0.26655841,652.76,651.68,0.25785487]
[1746978668177,0.26655841,652.76,651.69,1.19592438]
[1746978668777,0.26655841,652.76,651.7,0.25785487]
[1746978669078,0.26655841,652.76,651.71,1.19592438]
[1746978669473,0.26655841,652.76,651.72,0.25785487]
[1746978669678,0.26655841,652.76,651.73,1.19592438]
[1746978670380,0.30631154,652.93,651.74,0.25785487]
[1746978670683,0.26655841,652.75,651.74,0.25785487]
[1746978670882,0.26655841,652.75,651.75,1.19592438]
[1746978671378,0.26655841,652.75,651.76,0.25785487]
[1746978671783,0.26655841,652.75,651.77,1.19592438]
[1746978672085,0.26655841,652.75,651.78,0.25785487]
[1746978672886,0.26655841,652.75,651.79,1.19592438]
[1746978673385,0.30631154,652.93,651.79,1.19592438]
[1746978673685,0.26656658,652.74,651.8,0.25785487]
[1746978674084,0.26656658,652.74,651.81,1.19592438]
[1746978674579,0.26656658,652.74,651.82,0.25785487]
[1746978674778,0.26656658,652.74,651.83,1.19592438]
[1746978675287,0.26656658,652.74,651.59,1.19592438]